bitfinex-derivatives/quotes_ETHF0:USTF0_20240928
["timestamp","ask_amount","ask_price","bid_price","bid_amount"]
[1727501475187,0.37156,2690.7,2690.5,0.37157]
[1727501475395,0.785,2690.8,2690.4,0.3854]
[1727501475583,0.785,2690.8,2690.7,0.37155]
[1727501475787,3.2078,2691.0,2690.9,0.37152]
[1727501475990,0.3715,2691.1,2690.9,1.33]
[1727501476190,0.3715,2691.1,2690.9,1.70152]
[1727501476391,7.7141,2691.3,2690.9,1.70152]
[1727501476587,0.37149,2691.2,2690.9,1.70152]
[1727501476793,0.37149,2691.2,2690.9,2.07222]
[1727501477495,0.3715,2691.1,2690.9,2.07222]
[1727501478394,0.3783,2691.3,2691.0,1.33]
[1727501478698,0.74977,2691.3,2691.1,0.37149]
[1727501480604,0.74977,2691.3,2691.0,1.7015]
[1727501481405,0.37149,2691.2,2691.0,1.7015]
[1727501481702,0.74977,2691.3,2691.1,0.37149]
[1727501484207,0.3783,2691.3,2691.1,0.37149]
[1727501484400,0.74977,2691.3,2691.1,0.37149]
[1727501485106,0.74977,2691.3,2691.0,1.7015]
[1727501489111,0.74977,2691.3,2691.1,0.3715]
[1727501489813,0.3783,2691.3,2691.2,0.37148]
[1727501490306,0.3783,2691.3,2691.0,1.33]
[1727501490307,0.74977,2691.3,2691.1,0.37149]
[1727501491813,0.74977,2691.3,2691.0,1.33]
[1727501492014,0.37148,2691.2,2691.0,1.7015]
[1727501492517,0.37148,2691.2,2691.0,4.9093]
[1727501492815,0.74978,2691.3,2691.1,0.37149]
[1727501494402,0.37148,2691.2,2691.0,4.9093]
[1727501496511,0.74978,2691.3,2691.1,0.3715]
[1727501499011,0.74978,2691.3,2691.0,4.90931]
[1727501499012,0.37149,2691.2,2691.0,4.90931]
[1727501500613,0.74978,2691.3,2691.1,0.3715]
[1727501501725,0.37148,2691.2,2691.1,0.3715]
[1727501502218,0.74977,2691.3,2691.1,0.3715]
[1727501503616,0.4067,2691.4,2691.2,0.74848]
[1727501503816,0.77816,2691.4,2691.3,0.3848]
[1727501504016,2.31634812,2691.5,2691.4,0.37146]
[1727501504224,0.383,2691.7,2691.3,5.7526]
[1727501504415,0.383,2691.7,2691.6,1.70143]
[1727501504614,0.383,2691.7,2691.6,1.33]
[1727501504813,0.383,2691.7,2691.6,1.70143]
[1727501505017,0.75441,2691.7,2691.6,1.33]
[1727501505313,0.383,2691.7,2691.5,0.45855]
[1727501505526,0.37143,2691.6,2691.5,0.45855]
[1727501509125,0.37143,2691.6,2691.4,1.20045]
[1727501509425,0.37144,2691.5,2691.4,1.20045]
[1727501509831,0.37144,2691.6,2691.4,1.20045]
[1727501510921,0.37144,2691.5,2691.4,0.829]
[1727501511320,0.37144,2691.6,2691.4,1.20046]
[1727501511927,0.383,2691.7,2691.4,0.829]
[1727501512224,0.37144,2691.6,2691.4,1.20046]
[1727501519928,0.37144,2691.6,2690.8,1.33728789]
[1727501519929,6.17,2691.4,2690.8,1.33728789]
[1727501520148,3.718,2690.8,2690.0,2.4342517]
[1727501520441,1.93619369,2690.2,2689.6,1.33]
[1727501520631,0.37165,2690.0,2689.9,2.42080872]
[1727501521235,2.42024212,2690.1,2689.4,4.5378]
[1727501521236,0.37168,2689.8,2689.4,4.5378]
[1727501521444,1.4509858,2689.8,2689.4,3.2078]
[1727501521642,3.75734843,2689.8,2689.7,2.42080872]
[1727501521949,4.90948,2689.8,2689.7,2.42080872]
[1727501522242,3.57948,2689.8,2689.7,2.42080872]
[1727501523249,5.02751982,2689.8,2689.7,2.42080872]
[1727501523734,1.81971982,2689.8,2689.7,2.42080872]
[1727501523941,1.44803982,2689.8,2689.7,2.42080872]
[1727501524142,2.21029982,2690.0,2689.7,2.42080872]
[1727501524356,0.37167,2689.9,2689.8,2.42080872]
[1727501524955,3.57947,2689.9,2689.8,2.42080872]
[1727501525449,3.2078,2689.9,2689.8,2.42080872]
[1727501526057,3.57946,2689.9,2689.8,2.42080872]
[1727501534159,0.37175,2689.3,2689.2,0.3702]
[1727501534565,0.37175,2689.3,2689.2,1.96961872]
[1727501546875,7.91952,2689.3,2689.0,3.2078]
[1727501547072,3.2078,2689.2,2689.1,1.59941872]
[1727501547270,4.50897,2689.2,2689.1,1.59941872]
[1727501547672,1.30127,2689.0,2688.9,0.3904]
[1727501547866,0.37184,2688.7,2688.5,0.3904]
[1727501548080,4.74381,2689.2,2688.5,0.3904]
[1727501548081,0.3718,2688.9,2688.6,0.37184]
[1727501548274,0.37182,2688.8,2688.7,0.3831]
[1727501548772,0.37182,2688.8,2688.7,1.98251872]
[1727501551877,0.37181,2688.9,2688.7,1.98251872]
[1727501552076,0.37181,2688.9,2688.7,0.3831]
[1727501552276,3.5548,2689.4,2688.8,6.14721872]
[1727501552482,3.5548,2689.4,2689.3,1.59941872]
[1727501552483,3.2078,2689.4,2689.3,1.59941872]
[1727501552883,3.2078,2689.4,2689.3,2.74001872]
[1727501554786,3.2078,2689.4,2689.3,3.11176872]
[1727501556779,3.2078,2689.7,2689.3,5.64001872]
[1727501556980,3.2078,2689.7,2689.6,1.59941872]
[1727501557186,6.1078,2690.1,2689.6,1.59941872]
[1727501557378,6.1078,2690.1,2690.0,1.59941872]
[1727501557873,10.19704,2690.1,2689.3,4.41234]
[1727501558075,3.57948,2689.8,2689.3,1.1406]
[1727501558276,3.57948,2689.8,2689.4,0.37173]
[1727501558482,3.57948,2689.8,2689.7,1.59941872]
[1727501559178,3.2078,2689.8,2689.7,1.97110872]
[1727501559378,0.37166,2690.0,2689.7,1.97110872]
[1727501559584,6.1078,2690.1,2689.9,1.59941872]
[1727501559783,6.1078,2690.1,2689.6,0.3717]
[1727501559784,0.37167,2689.9,2689.6,0.3717]
[1727501560278,0.37167,2689.9,2689.8,1.59941872]
[1727501561981,0.37165,2690.0,2689.8,1.59941872]
[1727501562183,3.2078,2690.1,2690.0,1.59941872]
[1727501562775,3.57944,2690.1,2690.0,1.59941872]
[1727501563290,3.2078,2690.1,2690.0,1.59941872]
[1727501563890,0.37163,2690.2,2690.0,1.59941872]
[1727501564076,3.57943,2690.2,2690.1,1.59941872]
[1727501564479,3.57943,2690.2,2689.2,0.699]
[1727501564480,0.92923,2689.8,2689.2,0.699]
[1727501564684,3.57955,2689.3,2689.2,0.699]
[1727501565184,3.57955,2689.3,2689.2,2.29841872]
[1727501565480,5.02932204,2689.3,2689.2,2.29841872]
[1727501565686,3.57955,2689.3,2689.2,2.29841872]
[1727501565883,5.02929949,2689.3,2689.2,2.29841872]
[1727501566081,5.02930379,2689.3,2689.2,2.29841872]
[1727501566281,10.19795,2689.3,2689.2,0.699]
[1727501566483,12.128204,2689.3,2689.2,0.699]
[1727501566790,10.19795,2689.3,2689.2,0.699]
[1727501567287,11.12732,2689.3,2689.2,0.79788605]
[1727501568488,7.40892,2689.3,2689.2,2.39730477]
[1727501569591,9.34148714,2689.3,2689.2,2.39730477]
[1727501569784,7.40892,2689.3,2689.2,2.39730477]
[1727501569983,9.34148697,2689.3,2689.2,2.39730477]
[1727501571388,7.40892,2689.3,2689.2,2.39730477]
[1727501571591,9.34144575,2689.3,2689.2,2.39730477]
[1727501572389,8.85832953,2689.3,2689.2,2.39730477]
[1727501572998,7.92895953,2689.3,2689.2,2.39730477]
[1727501575292,3.57955,2689.3,2689.2,2.39730477]
[1727501576285,4.34940953,2689.5,2689.2,2.39730477]
[1727501576286,1.44940953,2689.5,2689.2,2.39730477]
[1727501576491,1.44940953,2689.5,2689.4,1.59941872]
[1727501576492,0.37173,2689.5,2689.4,1.59941872]
[1727501577196,0.37173,2689.5,2689.4,2.00351872]
[1727501577494,0.37173,2689.5,2689.4,2.10240477]
[1727501580693,0.37171,2689.6,2689.4,2.47412477]
[1727501580894,0.37171,2689.6,2689.5,0.75522]
[1727501581090,3.5795,2689.7,2689.5,2.35463872]
[1727501581300,3.5795,2689.7,2689.6,1.69830477]
[1727501581495,7.40873,2689.7,2689.6,1.69830477]
[1727501582000,19.5391475,2689.7,2689.6,0.09888605]
[1727501583188,16.6391475,2689.7,2689.6,0.09888605]
[1727501583393,8.41358701,2689.7,2689.6,1.69830477]
[1727501584702,7.93022185,2689.7,2689.6,1.69830477]
[1727501585396,6.4795,2689.7,2689.6,1.69830477]
[1727501587105,8.41358701,2689.7,2689.6,1.69830477]
[1727501587503,8.8923175,2689.7,2689.6,1.69830477]
[1727501589403,9.8215475,2689.7,2689.6,1.69830477]
[1727501589803,11.12633,2689.7,2689.6,0.09888605]
[1727501590005,13.54393066,2689.7,2689.6,0.09888605]
[1727501592098,9.82633066,2689.7,2689.6,1.69830477]
[1727501592711,5.51352638,2689.7,2689.6,1.69830477]
[1727501593106,3.5795,2689.7,2689.6,1.69830477]
[1727501594315,5.51352638,2689.7,2689.6,1.69830477]
[1727501594610,7.40873,2689.7,2689.6,1.69830477]
[1727501594807,9.34275638,2689.7,2689.6,1.69830477]
[1727501595523,7.40873,2689.7,2689.6,1.69830477]
[1727501596112,9.34275638,2689.7,2689.6,1.69830477]
[1727501596810,3.2078,2689.7,2689.6,2.07000477]
[1727501597007,1.93402638,2689.8,2689.6,2.07000477]
[1727501597008,1.45111848,2689.9,2689.8,0.37168]
[1727501597208,1.45111848,2690.0,2689.9,0.37166]
[1727501597414,1.93402638,2690.1,2689.9,0.37166]
[1727501597415,1.45111848,2690.1,2689.9,2.06996477]
[1727501597618,1.45111848,2690.1,2690.0,1.59941872]
[1727501597816,1.82275848,2690.1,2690.0,1.59941872]
[1727501598010,1.45111848,2690.1,2690.0,1.97106872]
[1727501598213,6.54560066,2690.4,2690.1,0.37164]
[1727501598214,5.57911848,2690.4,2690.1,0.37164]
[1727501598414,1.45111848,2690.4,2690.3,1.59941872]
[1727501598619,4.72270848,2690.5,2690.3,1.59941872]
[1727501598922,4.35111848,2690.5,2690.4,1.59941872]
[1727501599115,2.9,2690.5,2690.4,1.59941872]
[1727501599514,2.9,2690.5,2690.4,1.69830477]
[1727501600614,1.82268848,2690.6,2690.4,1.69830477]
[1727501600817,7.93047848,2690.7,2690.5,1.59941872]
[1727501601121,7.93047848,2690.7,2690.6,1.59941872]
[1727501601320,6.1078,2690.7,2690.6,1.59941872]
[1727501601526,6.1078,2690.7,2690.6,2.06987477]
[1727501601527,3.2078,2690.7,2690.6,2.06987477]
[1727501601820,2.9,2690.9,2690.6,1.69830477]
[1727501602017,2.9,2690.9,2690.8,1.59941872]
[1727501602518,3.7168,2690.8,2689.5,0.087]
[1727501602719,3.7168,2690.8,2689.4,3.2078]
[1727501602720,3.27161,2690.3,2690.1,0.3876]
[1727501602920,3.27161,2690.3,2690.2,0.4022]
[1727501603719,15.36676782,2690.3,2690.2,0.4022]
[1727501603928,0.37167,2689.9,2689.7,0.399]
[1727501604119,0.37167,2689.9,2689.8,0.4022]
[1727501604417,3.27167,2689.9,2689.8,0.4022]
[1727501604824,0.37167,2689.9,2689.8,0.4022]
[1727501605016,3.27167,2689.9,2689.8,0.4022]
[1727501605215,4.72103933,2689.9,2689.8,0.4022]
[1727501607219,0.37171,2689.6,2689.4,0.3876]
[1727501607415,0.37174,2689.4,2689.3,0.3931]
[1727501609525,1.82110933,2689.4,2689.3,0.3931]
[1727501609729,0.37174,2689.4,2689.3,0.3931]
[1727501610825,1.82110933,2689.4,2689.3,0.3931]
[1727501611215,0.37174,2689.4,2689.3,0.3931]
[1727501612620,3.57954,2689.4,2689.3,0.3931]
[1727501612821,5.02890933,2689.4,2689.3,0.3931]
[1727501613827,3.57954,2689.4,2689.3,0.3931]
[1727501614028,5.02890933,2689.4,2689.3,0.3931]
[1727501617724,3.57954,2689.4,2689.3,0.3931]
[1727501620831,5.02890933,2689.4,2689.3,0.3931]
[1727501621927,3.57954,2689.4,2689.3,0.3931]
[1727501623830,0.37175,2689.3,2689.0,0.37179]
[1727501624030,0.37175,2689.3,2689.2,0.3911]
[1727501627228,5.02890933,2689.4,2689.2,0.3911]
[1727501627432,4.65716933,2689.4,2689.2,0.3911]
[1727501627739,3.2078,2689.4,2689.2,0.3911]
[1727501628828,3.57954,2689.4,2689.2,0.3911]
[1727501633630,3.57954,2689.4,2689.2,0.76286]
[1727501634741,3.57954,2689.4,2689.2,0.3911]
[1727501635436,3.57954,2689.4,2689.2,0.76285]
[1727501635632,3.57954,2689.4,2689.2,0.3911]
[1727501636039,0.37175,2689.3,2689.2,0.3911]
[1727501638530,3.2078,2689.4,2688.8,3.9068]
[1727501638737,0.37179,2689.0,2688.9,0.7865]
[1727501640942,0.37177,2689.2,2689.0,0.37179]
[1727501641340,7.55716933,2689.4,2689.0,0.37179]
[1727501641341,0.37176,2689.3,2689.0,0.37179]
[1727501641549,0.37176,2689.2,2689.0,0.37179]
[1727501642440,0.37176,2689.2,2688.9,0.7865]
[1727501642643,0.37176,2689.2,2689.0,0.37179]
[1727501642835,6.1078,2689.4,2689.0,0.37178]
[1727501642836,0.37175,2689.3,2689.0,0.37178]
[1727501643249,4.65716933,2689.4,2689.3,0.37175]
[1727501643445,3.57949,2689.7,2689.4,0.37172]
[1727501643640,0.37169,2689.7,2689.5,0.7547]
[1727501643841,3.27168,2689.8,2689.5,1.12642]
[1727501644539,0.37169,2689.7,2689.5,1.12642]
[1727501644844,2.9,2689.8,2689.6,0.3717]
[1727501645052,2.9,2689.8,2689.5,0.7547]
[1727501645348,2.9,2689.8,2689.7,0.37169]
[1727501646637,4.65716933,2690.0,2689.8,0.37167]
[1727501646945,4.65716933,2690.0,2689.5,0.7547]
[1727501646946,3.2078,2690.0,2689.9,0.75216]
[1727501647135,1.44936933,2690.2,2689.9,0.3805]
[1727501647441,0.37162,2690.2,2690.0,0.7828]
[1727501648143,4.34936933,2690.3,2690.1,0.37163]
[1727501648448,3.27161,2690.3,2690.1,0.37163]
[1727501648748,7.92877933,2690.3,2690.1,0.37163]
[1727501648942,6.47941,2690.3,2690.1,0.37163]
[1727501650444,6.47941,2690.3,2690.0,1.15444]
[1727501652343,6.47941,2690.3,2690.1,0.37163]
[1727501653852,3.57941,2690.3,2690.1,0.37163]
[1727501654057,6.47941,2690.3,2690.1,0.37163]
[1727501655852,6.47941,2690.3,2690.0,1.15444]
[1727501656450,0.37162,2690.2,2690.0,1.15444]
[1727501656652,6.47942,2690.3,2690.0,1.15444]
[1727501657748,6.1078,2690.3,2690.0,1.15444]
[1727501657954,6.47942,2690.3,2690.0,1.15444]
[1727501658554,0.37163,2690.2,2690.0,1.15444]
[1727501663352,6.47942,2690.3,2690.0,1.15444]
[1727501664257,1.34,2690.2,2690.0,1.15444]
[1727501665356,1.71163,2690.2,2690.0,1.15444]
[1727501669457,1.34,2690.2,2690.0,1.15444]
[1727501669958,1.34,2690.2,2690.1,0.37164]
[1727501671757,1.71162,2690.2,2690.0,1.15444]
[1727501673758,1.34,2690.2,2690.1,0.37164]
[1727501674864,4.5478,2690.3,2690.2,0.37162]
[1727501675066,4.91941,2690.3,2690.1,0.37163]
[1727501675568,4.91941,2690.3,2690.0,0.7828]
[1727501675569,4.5478,2690.3,2690.2,0.37162]
[1727501675863,2.8613171,2690.8,2690.3,0.3716]
[1727501675864,1.71159,2690.5,2690.3,0.3716]
[1727501676056,1.71159,2690.5,2690.4,0.4055]
[1727501676460,1.34,2690.5,2690.4,0.77709]
[1727501677054,0.37157,2690.6,2690.4,0.4055]
[1727501677254,3.2078,2690.7,2690.6,0.37157]
[1727501678563,1.34,2690.8,2690.6,0.37157]
[1727501678763,1.34,2690.8,2690.7,0.37155]
[1727501680076,1.71154,2690.8,2690.6,0.37156]
[1727501680368,1.71154,2690.8,2690.7,0.37155]
[1727501680962,1.71154,2690.8,2690.6,0.37156]
[1727501683765,1.34,2690.8,2690.7,0.37155]
[1727501685472,1.7115,2691.1,2690.9,0.37152]
[1727501685675,4.91929,2691.2,2691.0,1.13961]
[1727501685873,4.91929,2691.2,2691.1,0.4061]
[1727501686176,4.5478,2691.2,2691.1,0.7776]
[1727501686376,3.2078,2691.2,2691.1,0.7776]
[1727501686570,1.71146,2691.4,2691.2,0.37147]
[1727501687870,1.34,2691.4,2691.3,0.37147]
[1727501688271,1.71146,2691.4,2691.2,0.37148]
[1727501689176,0.37148,2691.3,2691.1,0.77759]
[1727501689371,0.37148,2691.2,2691.1,0.4061]
[1727501689675,1.34,2691.2,2691.1,0.7776]
[1727501690774,1.71148,2691.2,2691.1,0.4061]
[1727501691071,1.34,2691.2,2691.1,0.4061]
[1727501691468,1.34,2691.2,2691.1,0.7776]
[1727501695076,0.37147,2691.3,2691.2,0.37148]
[1727501695284,0.37147,2691.3,2691.1,0.4061]
[1727501695482,0.37147,2691.3,2691.1,0.77759]
[1727501696881,0.37147,2691.3,2691.2,0.37148]
[1727501697273,0.37147,2691.3,2691.1,0.77759]
[1727501698279,1.34,2691.4,2691.2,0.37148]
[1727501698280,1.71146,2691.4,2691.2,0.37148]
[1727501698479,0.37147,2691.3,2691.1,0.77759]
[1727501698675,1.71146,2691.4,2691.2,0.37148]
[1727501699276,1.34,2691.4,2691.3,0.37147]
[1727501699477,1.82078933,2691.7,2691.5,0.37144]
[1727501699678,1.71142,2691.7,2691.5,0.37144]
[1727501699872,1.71142,2691.7,2691.6,0.3718]
[1727501700076,3.16078933,2691.7,2691.6,0.3718]
[1727501700272,5.42662,2691.7,2691.6,0.3718]
[1727501700480,6.87598933,2691.7,2691.6,0.3718]
[1727501701378,5.42662,2691.7,2691.6,0.3718]
[1727501701784,4.08662,2691.7,2691.6,0.3718]
[1727501702085,6.87598933,2691.7,2691.6,0.3718]
[1727501702474,5.42662,2691.7,2691.6,0.3718]
[1727501702677,4.08662,2691.7,2691.6,0.3718]
[1727501703690,4.08662,2691.7,2691.6,0.7532]
[1727501704184,2.78936933,2691.8,2691.6,0.7532]
[1727501704390,1.71141,2691.8,2691.6,1.12463]
[1727501705384,0.37141,2691.7,2691.6,0.7532]
[1727501708390,0.37141,2691.7,2691.6,0.3718]
[1727501709886,1.34,2691.8,2691.2,3.2078]
[1727501710084,1.34,2691.8,2691.2,0.3936]
[1727501710085,0.37147,2691.3,2691.2,0.3936]
[1727501710490,1.30015,2691.3,2691.2,0.3936]
[1727501710791,0.37148,2691.2,2691.1,0.699]
[1727501718296,1.82084933,2691.2,2691.1,0.699]
[1727501719900,1.82084933,2691.2,2691.1,1.0705]
[1727501719901,1.44936933,2691.2,2691.1,1.0705]
[1727501720104,1.44936933,2691.3,2691.1,0.699]
[1727501720293,3.16084933,2691.2,2691.1,0.699]
[1727501720604,3.6439171,2691.2,2691.1,0.699]
[1727501722402,11.01806224,2691.2,2691.1,0.699]
[1727501722704,11.4964371,2691.2,2691.1,0.699]
[1727501723002,9.564,2691.2,2691.1,0.699]
[1727501723202,11.97954637,2691.2,2691.1,0.699]
[1727501724699,9.564,2691.2,2691.1,0.699]
[1727501724900,11.98762443,2691.2,2691.1,0.699]
[1727501725404,11.98760833,2691.2,2691.1,0.699]
[1727501726303,9.564,2691.2,2691.1,0.699]
[1727501726497,11.98750304,2691.2,2691.1,0.699]
[1727501727306,9.564,2691.2,2691.1,0.699]
[1727501727495,6.3562,2691.2,2691.1,0.699]
[1727501727700,9.564,2691.2,2691.1,0.699]
[1727501729595,10.49272,2691.2,2691.1,0.699]
[1727501733303,9.564,2691.2,2691.1,0.699]
[1727501734515,9.564,2691.2,2691.1,1.0754]
[1727501734910,11.98753174,2691.2,2691.1,1.0754]
[1727501736410,11.05881174,2691.2,2691.1,1.0754]
[1727501737511,10.57391858,2691.2,2691.1,1.0754]
[1727501738514,11.50263858,2691.2,2691.1,1.0754]
[1727501740018,8.29483858,2691.2,2691.1,1.0754]
[1727501740213,11.50263858,2691.2,2691.1,1.0754]
[1727501740715,11.98753174,2691.2,2691.1,1.0754]
[1727501741211,9.564,2691.2,2691.1,1.0754]
[1727501745410,6.3562,2691.2,2691.1,1.0754]
[1727501745813,9.564,2691.2,2691.1,1.0754]
[1727501746520,11.98769782,2691.2,2691.1,1.0754]
[1727501748418,9.564,2691.2,2691.1,1.0754]
[1727501748617,11.98826825,2691.2,2691.1,1.0754]
[1727501748816,9.564,2691.2,2691.1,1.0754]
[1727501749013,8.27253683,2691.2,2691.1,1.0754]
[1727501750111,6.00381683,2691.2,2691.1,1.0754]
[1727501750312,4.91928,2691.2,2691.1,1.0754]
[1727501750723,6.85912332,2691.2,2691.1,1.0754]
[1727501752423,4.91928,2691.2,2691.1,1.0754]
[1727501754427,6.85912332,2691.2,2691.1,1.0754]
[1727501757526,6.85912332,2691.2,2691.1,1.12632185]
[1727501760324,4.91928,2691.2,2691.1,1.12632185]
[1727501760638,1.71148,2691.2,2691.1,1.12632185]
[1727501761732,4.91928,2691.2,2691.1,1.12632185]
[1727501761934,1.71148,2691.2,2691.1,1.12632185]
[1727501762434,4.13601683,2691.2,2691.1,1.12632185]
[1727501762736,1.71148,2691.2,2691.1,1.12632185]
[1727501762932,4.13601683,2691.2,2691.1,1.12632185]
[1727501763136,1.71148,2691.2,2691.1,1.12632185]
[1727501763325,2.6402,2691.2,2691.1,1.12632185]
[1727501763631,1.71148,2691.2,2691.1,1.12632185]
[1727501763834,4.91928,2691.2,2691.1,1.12632185]
[1727501764028,1.71148,2691.2,2691.1,1.12632185]
[1727501764433,4.91928,2691.2,2691.1,1.12632185]
[1727501764836,7.34381683,2691.2,2691.1,1.12632185]
[1727501765026,4.91928,2691.2,2691.1,1.12632185]
[1727501765226,7.34381683,2691.2,2691.1,1.12632185]
[1727501765936,8.27253683,2691.2,2691.1,1.12632185]
[1727501766325,7.34381683,2691.2,2691.1,1.12632185]
[1727501766532,4.13601683,2691.2,2691.1,1.12632185]
[1727501767129,1.71148,2691.2,2691.1,1.12632185]
[1727501767331,4.13601683,2691.2,2691.1,1.12632185]
[1727501767631,1.71148,2691.2,2691.1,1.12632185]
[1727501767838,5.848,2691.2,2691.1,1.12632185]
[1727501774426,5.848,2691.2,2691.1,0.74992185]
[1727501777143,2.6402,2691.2,2691.1,0.74992185]
[1727501777339,5.848,2691.2,2691.1,0.74992185]
[1727501779737,2.6402,2691.2,2691.1,0.74992185]
[1727501779940,5.848,2691.2,2691.1,0.74992185]
[1727501782240,1.94472124,2691.3,2691.1,3.06222717]
[1727501782435,1.40757041,2691.2,2691.1,7.7115]
[1727501782632,2.43075682,2691.8,2691.7,0.37141]
[1727501782943,2.43075682,2691.8,2691.2,4.81664737]
[1727501782944,2.43075682,2691.9,2691.6,0.97454367]
[1727501783149,2.43075682,2692.0,2691.7,0.37141]
[1727501783338,4.14211682,2692.1,2691.8,0.3714]
[1727501783848,3.2078,2692.2,2691.9,1.34]
[1727501783849,2.43075682,2692.2,2691.9,1.34]
[1727501784046,3.20448682,2692.4,2691.9,2.31454367]
[1727501784344,0.4024,2692.4,2692.1,0.37135]
[1727501784545,0.4024,2692.4,2692.1,1.07035]
[1727501784845,0.77372,2692.4,2692.1,1.07035]
[1727501785143,0.4024,2692.4,2692.2,0.37134]
[1727501785345,0.374,2692.6,2692.3,1.34]
[1727501785648,0.374,2692.6,2692.4,0.699]
[1727501786148,0.7453,2692.6,2692.4,0.699]
[1727501788437,0.374,2692.6,2692.4,1.07031]
[1727501790951,0.374,2692.6,2692.5,0.699]
[1727501793249,0.77368,2692.7,2692.5,0.699]
[1727501796852,0.77368,2692.7,2692.6,0.699]
[1727501797752,0.4024,2692.7,2692.6,0.699]
[1727501797953,0.77368,2692.7,2692.6,0.699]
[1727501802758,0.4024,2692.7,2692.6,0.699]
[1727501803466,0.77368,2692.7,2692.6,0.699]
[1727501812172,2.11368,2692.7,2692.6,0.699]
[1727501812368,3.04188,2692.7,2692.6,0.699]
[1727501816079,6.75548,2692.7,2692.6,0.699]
[1727501820691,9.96328,2692.7,2692.6,0.699]
[1727501823587,6.24968,2692.7,2692.6,0.699]
[1727501823981,3.6102,2692.7,2692.6,0.699]
[1727501824182,3.6102,2692.7,2692.6,2.41029]
[1727501824183,3.2078,2692.7,2692.6,2.41029]
[1727501824385,5.91873026,2693.1,2692.9,0.37124]
[1727501824688,3.9889,2693.1,2692.9,1.07024]
[1727501824988,0.7811,2693.1,2693.0,0.37124]
[1727501825188,1.92983026,2693.2,2693.0,5.7526]
[1727501825493,1.92983026,2693.7,2693.1,6.1918]
[1727501825698,1.92983026,2693.7,2693.5,0.37116]
[1727501825897,5.50876026,2693.8,2693.4,0.37117]
[1727501826093,5.50876026,2693.8,2693.4,0.75397]
[1727501826094,1.92983026,2693.7,2693.4,0.75397]
[1727501826287,1.92983026,2693.7,2693.5,0.37117]
[1727501826593,1.92983026,2693.7,2693.4,0.75397]
[1727501826795,3.2078,2693.8,2693.5,1.71116]
[1727501827192,3.2078,2693.8,2693.5,1.34]
[1727501827490,1.93993134,2693.7,2693.5,1.34]
[1727501828888,2.79604417,2693.8,2693.5,1.34]
[1727501829087,0.37113,2693.8,2693.5,1.34]
[1727501829589,0.37114,2693.7,2693.6,0.699]
[1727501829787,1.71114,2693.7,2693.6,0.699]
[1727501831489,6.35179,2693.7,2693.6,0.699]
[1727501831691,12.35179,2693.7,2693.6,0.0867]
[1727501831895,0.37121,2693.2,2692.8,2.6641]
[1727501832790,0.37121,2693.2,2692.8,3.03536]
[1727501833388,0.37123,2693.1,2692.8,1.7191]
[1727501835893,0.37123,2693.1,2692.8,2.09036]
[1727501836095,0.37123,2693.1,2692.8,5.29816]
[1727501836696,0.37123,2693.1,2692.8,2.09036]
[1727501838496,0.37123,2693.1,2692.8,1.7191]
[1727501839108,2.31251873,2693.1,2692.8,1.7191]
[1727501841904,0.37124,2693.0,2692.8,1.7191]
[1727501842207,0.37125,2692.9,2692.8,0.3791]
[1727501843608,2.22063171,2692.9,2692.8,0.3791]
[1727501844402,0.76515,2692.9,2692.8,0.3791]
[1727501844602,2.22063171,2692.9,2692.8,0.3791]
[1727501845008,0.37128,2692.7,2692.6,2.1244]
[1727501847514,1.82675171,2692.8,2692.6,2.1244]
[1727501849414,0.37128,2692.7,2692.6,2.1244]
[1727501850916,1.82675171,2692.8,2692.6,2.1244]
[1727501851120,0.37127,2692.8,2692.6,2.1244]
[1727501851321,1.82675171,2692.8,2692.6,2.1244]
[1727501852418,0.37127,2692.8,2692.6,2.1244]
[1727501852610,1.82675171,2692.8,2692.6,2.1244]
[1727501852917,0.37128,2692.7,2692.6,2.1244]
[1727501857513,1.82676171,2692.7,2692.6,2.1244]
[1727501859723,0.37129,2692.6,2692.5,1.742]
[1727501860031,1.82677171,2692.6,2692.5,1.742]
[1727501860529,0.37129,2692.6,2692.5,0.402]
[1727501862230,2.31257873,2692.6,2692.5,0.402]
[1727501864724,0.3713,2692.5,2692.3,3.2078]
[1727501864925,1.45663661,2692.4,2692.3,3.5891]
[1727501865527,0.7464,2692.5,2692.3,3.5891]
[1727501866031,0.7464,2692.5,2692.3,3.96043]
[1727501866830,0.3751,2692.5,2692.3,3.96043]
[1727501867033,0.74641,2692.5,2692.3,3.96043]
[1727501867232,0.3751,2692.5,2692.4,1.34]
[1727501876047,0.7464,2692.5,2692.4,1.34]
[1727501877341,0.7464,2692.5,2692.3,3.96042]
[1727501877537,1.45738358,2692.4,2692.3,3.96042]
[1727501879142,1.45738358,2692.4,2692.3,0.75262]
[1727501880637,0.3751,2692.5,2692.3,1.72486094]
[1727501881046,0.74641,2692.5,2692.3,1.72486094]
[1727501881245,0.74641,2692.5,2692.3,1.35354094]
[1727501881246,0.37132,2692.4,2692.3,1.35354094]
[1727501881452,0.74641,2692.5,2692.3,1.35354094]
[1727501882244,0.74641,2692.5,2692.3,1.72487094]
[1727501882550,2.20379358,2692.5,2692.3,1.72487094]
[1727501882737,1.83248358,2692.5,2692.3,1.35354094]
[1727501883044,1.83248358,2692.5,2692.2,6.76770141]
[1727501883045,5.0544,2692.4,2692.1,0.97224094]
[1727501883338,5.0544,2692.4,2691.7,0.97224094]
[1727501883339,0.92844,2692.0,2691.7,0.97224094]
[1727501883539,1.8288525,2691.8,2691.6,1.36214094]
[1727501883939,1.8288525,2691.8,2691.6,0.3899]
[1727501883940,0.37141,2691.7,2691.6,0.3899]
[1727501884141,2.6530425,2691.9,2691.5,0.97323218]
[1727501884341,0.37143,2691.6,2691.5,0.97323218]
[1727501884540,0.37143,2691.6,2691.4,5.52103218]